fUSD/lending_fUSD_20250212
["ID","MTS","AMOUNT","RATE_DAILY","PERIOD"]
[352878664,1739385041814,-1000.0,0.000191,2]
[352878666,1739385041824,-1000.0,0.000191,2]
[352878669,1739385041846,-500.0,0.000191,2]
[352878672,1739385041860,-1000.0,0.000191,2]
[352878674,1739385041874,-500.0,0.000191,2]
[352878676,1739385041886,-500.0,0.000191,2]
[352878679,1739385041898,-1000.0,0.000191,2]
[352878681,1739385041910,-500.0,0.000191,2]
[352878683,1739385041922,-997.01742518,0.000191,2]
[352878685,1739385041934,-1000.0,0.000191,2]
[352878688,1739385041946,-1000.0,0.000191,2]
[352878690,1739385041957,-500.0,0.000191,2]
[352878692,1739385041971,-1000.0,0.000191,2]
[352878694,1739385041983,-500.0,0.000191,2]
[352878697,1739385041995,-500.0,0.000191,2]
[352878699,1739385042007,-1560.92638771,0.000191,2]
[352878701,1739385042018,-500.0,0.000191,2]
[352878704,1739385042030,-500.0,0.000191,2]
[352878706,1739385042041,-500.0,0.000191,2]
[352878708,1739385042052,-500.0,0.000191,2]
[352878710,1739385042068,-500.0,0.000191,2]
[352878713,1739385042080,-999.02341245,0.000191,2]
[352878715,1739385042091,-744.10546234,0.000191,2]
[352878717,1739385042103,-500.0,0.000191,2]
[352878719,1739385042117,-500.0,0.000191,2]
[352878722,1739385042128,-999.99484747,0.000191,2]
[352878724,1739385042143,-600.87704375,0.000191,2]
[352878726,1739385042154,-500.0,0.000191,2]
[352878729,1739385042166,-500.0,0.000191,2]
[352878731,1739385042178,-500.0,0.000191,2]
[352878733,1739385042190,-733.21335091,0.000191,2]
[352878735,1739385042201,-500.0,0.000191,2]
[352878737,1739385042213,-500.0,0.000191,2]
[352878740,1739385042224,-500.0,0.000191,2]
[352878742,1739385042235,-500.0,0.000191,2]
[352878744,1739385042246,-679.41269136,0.000191,2]
[352878746,1739385042258,-200.0,0.00019101,2]
[352878748,1739385042270,-5000.0,0.00019105,2]
[352878751,1739385042282,-5075.83828806,0.0001911,2]
[352878753,1739385042293,-2534.58,0.00019124,2]
[352878755,1739385042305,-5000.0,0.00019127,2]
[352878758,1739385042317,-150359.99870749,0.0001915,7]
[352878760,1739385042329,-11912.43,0.00019151,2]
[352878762,1739385042341,-163.55050001,0.00019164,2]
[352878764,1739385042355,-500.3904521,0.00019178,7]
[352878766,1739385042374,-500.0,0.00019178,30]
[352878768,1739385042386,-286.10674126,0.00019178,30]
[352878770,1739385042397,-500.0,0.00019178,5]
[352878772,1739385042408,-500.0,0.00019178,5]
[352878774,1739385042418,-500.0,0.00019178,5]
[352878776,1739385042429,-350.0,0.00019178,2]
[352878778,1739385042440,-350.0,0.00019178,2]
[352878804,1739385042717,-321.90374375,0.00019178,2]
[352878811,1739385042741,-1574.67,0.00019178,2]
[352878815,1739385042756,-1574.67,0.00019178,2]
[352878819,1739385042767,-1574.67,0.00019178,2]
[352878823,1739385042777,-862.93278354,0.00019178,2]
[352878825,1739385042787,-150.0,0.00019178,2]
[352878827,1739385042797,-1500.0,0.00019178,2]
[352878829,1739385042807,-3232.61,0.00019178,2]
[352878831,1739385042818,-150.0,0.00019178,2]
[352878833,1739385042828,-150.0,0.00019178,2]
[352878835,1739385042837,-500.0,0.00019192,2]
[352878838,1739385042847,-1373.36,0.00019196,2]
[352878841,1739385042857,-152.66,0.00019198,2]
[352878844,1739385042870,-177.86,0.00019202,3]
[352878846,1739385042880,-500.0,0.00019202,3]
[352878848,1739385042889,-187.69001978,0.00019202,3]
[352878850,1739385042899,-681.46,0.00019202,3]
[352878852,1739385042909,-500.0,0.00019202,3]
[352878854,1739385042920,-500.0,0.00019202,3]
[352878857,1739385042929,-500.0,0.00019209,3]
[352878860,1739385042939,-500.0,0.00019209,3]
[352878862,1739385042949,-500.0,0.00019209,3]
[352878864,1739385042959,-500.0,0.00019209,3]
[352878866,1739385042968,-500.0,0.00019209,3]
[352878868,1739385042978,-500.0,0.0001921,5]
[352878870,1739385042987,-1574.67,0.0001921,3]
[352878872,1739385042998,-500.0,0.0001921,3]
[352878874,1739385043008,-500.0,0.0001921,3]
[352878876,1739385043017,-2500.0,0.00019225,2]
[352878878,1739385043027,-1500.0,0.00019229,2]
[352878880,1739385043038,-328.9964512,0.00019241,2]
[352878882,1739385043048,-493.2527066,0.00019241,2]
[352878884,1739385043059,-5000.0,0.00019249,2]
[352878886,1739385043071,-2096.0,0.00019269,2]
[352878888,1739385043080,-5000.0,0.00019278,2]
[352878890,1739385043090,-1500.0,0.00019281,2]
[352878892,1739385043102,-260.67262,0.00019288,7]
[352878894,1739385043113,-500.0,0.00019292,2]
[352878896,1739385043123,-222910.75802385,0.000193,2]
[352878898,1739385043133,-2571.99,0.00019306,2]
[352878900,1739385043143,-47200.0,0.00019316,2]
[352878902,1739385043153,-25000.0,0.0001932,2]
[352878904,1739385043163,-946.87,0.0001932,2]
[352878906,1739385043173,-962.74,0.00019329,7]
[352878909,1739385043183,-962.74,0.00019329,7]
[352878911,1739385043193,-1500.0,0.00019332,2]
[352878912,1739385043203,-461.97326835,0.00019339,3]
[352878915,1739385043212,-681.46,0.00019339,3]
[352878917,1739385043222,-516.69224483,0.00019339,3]
[352878919,1739385043232,-500.0,0.00019339,3]
[352878921,1739385043241,-500.0,0.00019346,3]
[352878923,1739385043251,-500.0,0.00019346,3]
[352878925,1739385043261,-599.39889659,0.00019346,3]
[352878927,1739385043271,-500.0,0.00019346,3]
[352878929,1739385043281,-500.0,0.00019346,3]
[352878931,1739385043291,-500.0,0.00019347,5]
[352878933,1739385043301,-1574.67,0.00019347,3]
[352878935,1739385043311,-500.0,0.00019347,3]
[352878937,1739385043321,-548.31955792,0.00019347,3]
[352878939,1739385043331,-1304.4475722,0.00019357,2]
[352878941,1739385043341,-206.0,0.0001936,2]
[352878943,1739385043350,-5000.0,0.00019361,2]
[352878945,1739385043360,-700.0,0.00019367,2]
[352878947,1739385043371,-502.78,0.0001937,2]
[352878948,1739385043382,-203.65,0.00019379,2]
[352878949,1739385043392,-1500.0,0.00019384,2]
[352878951,1739385043401,-1544.5499537,0.00019386,2]
[352878954,1739385043411,-1952.153363,0.00019388,2]
[352878956,1739385043420,-500.0,0.00019392,2]
[352878958,1739385043429,-168.30011952,0.00019399,3]
[352878960,1739385043439,-993226.18803812,0.00019399,3]
[352878962,1739385043448,-109363.85803753,0.000194,2]
[352878965,1739385043457,-23421.47563088,0.00019401,2]
[352878968,1739385043467,-948.97,0.00019403,2]
[352878971,1739385043477,-328.9964512,0.00019406,2]
[352878975,1739385043487,-493.2527066,0.00019406,2]
[352878978,1739385043497,-2000.0,0.0001942,2]
[352878981,1739385043506,-299.57963448,0.00019425,4]
[352878984,1739385043516,-212.55546901,0.00019425,4]
[352878987,1739385043525,-163.55050001,0.00019427,2]
[352878990,1739385043534,-2594.7,0.00019433,2]
[352878993,1739385043544,-1500.0,0.00019435,2]
[352878995,1739385043554,-2587.77,0.00019447,2]
[352878999,1739385043564,-300.0,0.00019451,2]
[352879001,1739385043573,-500.0,0.00019451,2]
[352879003,1739385043583,-25000.0,0.00019452,2]
[352879004,1739385043592,-150.0,0.00019452,2]
[352879006,1739385043603,-2096.0,0.0001946,2]
[352879009,1739385043614,-681.46,0.00019476,3]
[352879010,1739385043623,-500.0,0.00019476,3]
[352879013,1739385043633,-245494.076369,0.00019478,2]
[352879014,1739385043643,-500.0,0.00019483,3]
[352879016,1739385043652,-500.0,0.00019483,3]
[352879018,1739385043662,-500.0,0.00019483,3]
[352879020,1739385043671,-500.0,0.00019483,3]
[352879022,1739385043681,-500.0,0.00019484,5]
[352879024,1739385043691,-1574.67,0.00019484,3]
[352879026,1739385043701,-500.0,0.00019484,3]
[352879028,1739385043710,-1500.0,0.00019486,2]
[352879030,1739385043720,-260.67262,0.00019488,7]
[352879032,1739385043729,-500.0,0.00019492,2]
[352879034,1739385043738,-1500.0,0.00019538,2]
[352879036,1739385043748,-328.9964512,0.00019571,2]
[352879038,1739385043758,-493.2527066,0.00019571,2]
[352879040,1739385043768,-218.43,0.00019571,2]
[352879042,1739385043777,-5000.0,0.00019573,2]
[352879044,1739385043787,-500.0,0.00019588,2]
[352879046,1739385043797,-1500.0,0.00019589,2]
[352879048,1739385043806,-4669.8079576,0.00019591,2]
[352879050,1739385043816,-500.0,0.00019592,2]
[352879052,1739385043825,-25000.0,0.00019599,2]
[352879054,1739385043835,-150.0,0.000196,2]
[352879056,1739385043845,-1073.17327403,0.000196,2]
[352879058,1739385043854,-1142.40717743,0.000196,2]
[352879060,1739385043866,-962.74,0.00019603,7]
[352879062,1739385043875,-962.74,0.00019603,7]
[352879064,1739385043885,-3290.71511426,0.0001961,2]
[352879066,1739385043895,-5000.0,0.00019613,2]
[352879068,1739385043905,-681.46,0.00019613,3]
[352879070,1739385043915,-500.0,0.00019613,3]
[352879072,1739385043925,-1000.0,0.00019616,2]
[352879074,1739385043934,-775.41,0.00019616,2]
[352879076,1739385043946,-775.41,0.00019616,2]
[352879078,1739385043955,-775.41,0.00019616,2]
[352879081,1739385043965,-775.41,0.00019616,2]
[352879082,1739385043975,-775.41,0.00019616,2]
[352879084,1739385043985,-1135.25,0.00019616,2]
[352879086,1739385043994,-500.0,0.0001962,3]
[352879088,1739385044004,-457.66031656,0.0001962,3]
[352879090,1739385044013,-500.0,0.0001962,3]
[352879092,1739385044023,-500.0,0.0001962,3]
[352879094,1739385044033,-500.0,0.00019621,5]
[352879096,1739385044043,-1574.67,0.00019621,3]
[352879099,1739385044053,-500.0,0.00019621,3]
[352879101,1739385044066,-5000.0,0.00019628,2]
[352879103,1739385044076,-5000.0,0.00019633,2]
[352879104,1739385044085,-1500.0,0.0001964,2]
[352879106,1739385044095,-2096.0,0.0001965,2]
[352879108,1739385044107,-5000.0,0.0001966,2]
[352879110,1739385044118,-150.0,0.00019683,2]
[352879112,1739385044128,-1738.1472457,0.00019687,2]
[352879114,1739385044138,-1169.1780553,0.00019687,2]
[352879117,1739385044148,-1386.7677203,0.00019687,2]
[352879119,1739385044159,-977.08059835,0.0001969,2]
[352879121,1739385044168,-163.55050001,0.00019691,2]
[352879122,1739385044177,-1500.0,0.00019692,2]
[352879124,1739385044187,-500.0,0.00019692,2]
[352879126,1739385044196,-5000.0,0.00019693,2]
[352879128,1739385044205,-5000.0,0.00019694,2]
[352879130,1739385044215,-205872.92944269,0.000197,2]
[352879132,1739385044224,-3000.0,0.000197,2]
[352879134,1739385044234,-2300.0,0.000197,7]
[352879136,1739385044244,-1991.5761,0.0001972,2]
[352879138,1739385044254,-500.0,0.00019725,2]
[352879140,1739385044263,-2572.0,0.00019728,2]
[352879142,1739385044273,-328.9964512,0.00019735,2]
[352879144,1739385044283,-493.2527066,0.00019735,2]
[352879146,1739385044293,-1500.0,0.00019743,2]
[352879148,1739385044303,-5000.0,0.00019744,2]
[352879151,1739385044313,-681.46,0.0001975,3]
[352879153,1739385044323,-500.0,0.0001975,3]
[352879155,1739385044332,-443.81,0.00019756,2]
[352879156,1739385044342,-500.0,0.00019757,3]
[352879159,1739385044352,-500.0,0.00019757,3]
[352879160,1739385044362,-500.0,0.00019757,3]
[352879163,1739385044373,-500.0,0.00019758,5]
[352879165,1739385044384,-1574.67,0.00019758,3]
[352879167,1739385044394,-500.0,0.00019758,3]
[352879169,1739385044403,-500.0,0.00019792,2]
[352879171,1739385044412,-1500.0,0.00019795,2]
[352879173,1739385044421,-3423.39153762,0.000198,2]
[352879175,1739385044431,-20000.00000099,0.000198,6]
[352879177,1739385044440,-411.42765315,0.000198,2]
[352879179,1739385044450,-400.0,0.000198,7]
[352879181,1739385044460,-203.11346131,0.000198,2]
[352879183,1739385044469,-2804.22845889,0.000198,2]
[352879185,1739385044479,-5000.0,0.00019805,2]
[352879187,1739385044489,-14678.96,0.00019814,2]
[352879189,1739385044499,-206.0,0.0001982,2]
[352879191,1739385044509,-152.0,0.00019824,5]
[352879193,1739385044518,-1500.0,0.00019846,2]
[352879195,1739385044527,-177.89328381,0.00019848,2]
[352879197,1739385044537,-25000.0,0.00019862,2]
[352879199,1739385044546,-500.0,0.00019862,2]
[352879201,1739385044555,-3004.82084523,0.0001987,2]
[352879203,1739385044565,-962.74,0.00019877,7]
[352879205,1739385044573,-962.74,0.00019877,7]
[352879207,1739385044583,-25000.0,0.00019878,2]
[352879209,1739385044592,-681.46,0.00019887,3]
[352879211,1739385044602,-500.0,0.00019887,3]
[352879212,1739385044611,-260.67262,0.00019888,7]
[352879214,1739385044623,-500.0,0.00019892,2]
[352879216,1739385044633,-500.0,0.00019894,3]
[352879217,1739385044642,-500.0,0.00019894,3]
[352879218,1739385044651,-500.0,0.00019894,3]
[352879219,1739385044661,-500.0,0.00019895,5]
[352879220,1739385044670,-1574.67,0.00019895,3]
[352879221,1739385044679,-500.0,0.00019895,3]
[352879222,1739385044688,-1500.0,0.00019897,2]
[352879223,1739385044698,-10967.75527136,0.000199,5]
[352879224,1739385044707,-4698.71215463,0.000199,3]
[352879225,1739385044716,-204256.03974345,0.000199,7]
[352879227,1739385044726,-5844.08826597,0.000199,2]
[352879229,1739385044735,-2931.4496624,0.000199,7]
[352879230,1739385044745,-1000.0,0.000199,30]
[352879232,1739385044754,-25000.0,0.000199,33]
[352879234,1739385044765,-328.9964512,0.000199,2]
[352879235,1739385044775,-179.23525826,0.000199,2]
[352879237,1739385044784,-179.23525824,0.000199,2]
[352879238,1739385044795,-400.0,0.000199,7]
[352879240,1739385044805,-493.2527066,0.000199,2]
[352879242,1739385044814,-831.72,0.00019901,2]
[352879244,1739385044824,-547.96,0.00019903,30]
[352879245,1739385044833,-2310.14,0.00019913,2]
[352879246,1739385044843,-25000.0,0.00019937,2]
[352879247,1739385044852,-1500.0,0.00019949,2]
[352879248,1739385044862,-163.55050001,0.00019955,2]
[352879249,1739385044874,-514.0,0.0001997,2]
[352879250,1739385044883,-164.51673155,0.00019972,2]
[352879251,1739385044893,-25000.0,0.00019979,2]
[352879252,1739385044904,-1524.1411283,0.00019986,2]
[352879254,1739385044915,-1310.135011,0.00019986,2]
[352879256,1739385044924,-1096.1288936,0.00019986,2]
[352879258,1739385044934,-1033.9085385,0.00019986,2]
[352879259,1739385044944,-898.6390216,0.00019986,2]
[352879260,1739385044954,-763.3695047,0.00019986,2]
[352879261,1739385044964,-1228.9854868,0.00019986,2]
[352879262,1739385044974,-1071.2032534,0.00019986,2]
[352879263,1739385044983,-913.4210199,0.00019986,2]
[352879264,1739385044993,-977.08059835,0.0001999,2]
[352879265,1739385045002,-500.0,0.00019992,2]
[352879266,1739385045013,-500.0,0.00019999,2]
[352879267,1739385045023,-1000.0,0.0002,2]
[352879268,1739385045033,-1000.0,0.0002,3]
[352879269,1739385045044,-1000.0,0.0002,4]
[352879270,1739385045055,-1000.0,0.0002,10]
[352879271,1739385045070,-1500.0,0.0002,2]
[352879272,1739385045081,-2110.0,0.0002,2]
[352879273,1739385045091,-10000.0,0.0002,7]
[352879274,1739385045101,-10000.0,0.0002,7]
[352879275,1739385045111,-1379.42,0.0002,2]
[352879276,1739385045124,-3000.0,0.0002,2]
[352879277,1739385045135,-3000.0,0.0002,2]
[352879278,1739385045146,-3000.0,0.0002,2]
[352879279,1739385045158,-3000.0,0.0002,2]
[352879280,1739385045170,-3000.12,0.0002,2]
[352879281,1739385045179,-298.5268505,0.0002,2]
[352879282,1739385045189,-10000.0,0.0002,2]
[352879283,1739385045199,-4275.90048674,0.0002,30]
[352879284,1739385045209,-1469.59384092,0.0002,2]
[352879285,1739385045219,-4264.96572426,0.0002,2]
[352879286,1739385045229,-200.0,0.0002,2]
[352879287,1739385045238,-524801.67936545,0.0002,2]
[352879288,1739385045248,-5370.35339218,0.0002,4]
[352879289,1739385045259,-1513.13765271,0.0002,30]
[352879290,1739385045268,-75557.30319672,0.0002,30]
[352879291,1739385045279,-71748.21879559,0.0002,2]
[352879292,1739385045288,-1395.89231662,0.0002,5]
[352879293,1739385045298,-7500.0,0.0002,2]
[352879294,1739385045308,-3835.60128722,0.0002,2]
[352879295,1739385045317,-80685.56094857,0.0002,30]
[352879296,1739385045328,-45765.91071122,0.0002,2]
[352879297,1739385045339,-8300.0,0.0002,4]
[352879298,1739385045351,-200.0,0.0002,5]
[352879299,1739385045361,-351396.81143031,0.0002,4]
[352879300,1739385045374,-3950.0,0.0002,2]
[352879301,1739385045384,-24517.65289954,0.0002,20]
[352879302,1739385045394,-26022.87298574,0.0002,14]
[352879303,1739385045403,-1240.57823675,0.0002,2]
[352879304,1739385045413,-170142.56353445,0.0002,30]
[352879305,1739385045423,-225195.9553701,0.0002,14]
[352879306,1739385045433,-20154.62495252,0.0002,30]
[352879307,1739385045442,-1220.45877654,0.0002,10]
[352879308,1739385045452,-1322.95591442,0.0002,2]
[352879309,1739385045462,-246.18801304,0.0002,30]
[352879310,1739385045473,-2784.78289189,0.0002,7]
[352879311,1739385045484,-11736.61273856,0.0002,2]
[352879312,1739385045494,-472.50970648,0.0002,10]
[352879313,1739385045505,-502.35490655,0.0002,7]
[352879314,1739385045515,-1656305.07685823,0.0002,15]
[352879315,1739385045524,-1013.0,0.0002,6]
[352879316,1739385045534,-2773.02599817,0.0002,30]
[352879317,1739385045544,-798.02753469,0.0002,7]
[352879318,1739385045554,-1000.93700305,0.0002,2]
[352879319,1739385045565,-2150.75640482,0.0002,2]
[352879320,1739385045576,-1206.44468785,0.0002,2]
[352879322,1739385045588,-105784.5103295,0.0002,30]
[352879324,1739385045597,-899.99999908,0.0002,21]
[352879325,1739385045607,-300.0,0.0002,2]
[352879326,1739385045617,-300.0,0.0002,2]
[352879327,1739385045627,-300.0,0.0002,2]
[352879328,1739385045636,-300.0,0.0002,2]
[352879330,1739385045646,-583.29737,0.0002,2]
[352879331,1739385045655,-484.71101097,0.0002,30]
[352879332,1739385045667,-3857.27015179,0.0002,30]
[352879333,1739385045678,-91134.33436984,0.0002,2]
[352879334,1739385045688,-139070.74894344,0.0002,2]
[352879336,1739385045700,-20611.31540094,0.0002,2]
[352879337,1739385045712,-27350.48468674,0.0002,10]
[352879338,1739385045723,-3570.0,0.0002,2]
[352879339,1739385045732,-950.0,0.0002,10]
[352879340,1739385045742,-378.76074155,0.0002,15]
[352879341,1739385045751,-1000.0,0.0002,10]
[352879342,1739385045760,-129000.0,0.0002,10]
[352879343,1739385045770,-121084.2410594,0.0002,10]
[352879344,1739385045779,-87742.45321168,0.0002,30]
[352879346,1739385045788,-380.0,0.0002,2]
[352879348,1739385045798,-6000.0,0.0002,2]
[352879350,1739385045807,-2000.0,0.0002,2]
[352879351,1739385045817,-2000.0,0.0002,2]
[352879352,1739385045826,-7482.738982,0.0002,7]
[352879353,1739385045836,-2799.588011,0.0002,7]
[352879354,1739385045847,-1423.266974,0.0002,7]
[352879355,1739385045858,-354.9983725,0.0002,2]
[352879356,1739385045870,-907.0764,0.0002,2]
[352879357,1739385045880,-2000.0,0.0002,2]
[352879358,1739385045890,-2641.15,0.0002,2]
[352879359,1739385045900,-10000.0,0.0002,2]
[352879360,1739385045910,-10000.0,0.0002,2]
[352879361,1739385045919,-2000.0,0.0002,2]
[352879362,1739385045928,-500.0,0.0002,2]
[352879363,1739385045938,-503.809489,0.0002,30]
[352879364,1739385045950,-159.0,0.0002,2]
[352879365,1739385045959,-159.0,0.0002,2]
[352879366,1739385045970,-402.60960774,0.0002,2]
[352879367,1739385045979,-10000.0,0.0002,2]
[352879368,1739385045989,-1000.0,0.0002,2]
[352879369,1739385046000,-12500.0,0.0002,2]
[352879370,1739385046010,-150.0,0.0002,5]
[352879371,1739385046020,-1500.0,0.0002,5]
[352879372,1739385046031,-2000.0,0.0002001,2]
[352879373,1739385046041,-3976.411931,0.0002002,2]
[352879374,1739385046051,-681.46,0.00020024,3]
[352879375,1739385046064,-500.0,0.00020024,3]
[352879376,1739385046074,-500.0,0.00020031,3]
[352879377,1739385046084,-372.0193915,0.00020031,3]
[352879378,1739385046235,-216.29482295,0.00020031,3]
[352879379,1739385046248,-500.0,0.00020032,5]
[352879380,1739385046259,-1574.67,0.00020032,3]
[352879381,1739385046269,-500.0,0.00020032,3]
[352879382,1739385046281,-12500.0,0.0002004,2]
[352879383,1739385046291,-1500.0,0.00020051,2]
[352879384,1739385046301,-177.89328381,0.00020059,2]
[352879385,1739385046310,-150.0,0.0002008,120]
[352879386,1739385046319,-12500.0,0.0002008,2]
[352879387,1739385046330,-260.67262,0.00020088,7]
[352879388,1739385046340,-2000.0,0.00020089,2]
[352879389,1739385046351,-500.0,0.00020092,2]
[352879390,1739385046361,-1500.0,0.00020103,2]
[352879391,1739385046373,-10000.0,0.00020107,2]
[352879392,1739385046383,-2026.14,0.00020107,2]
[352879393,1739385046394,-10000.0,0.00020107,2]
[352879394,1739385046404,-12500.0,0.0002012,2]
[352879395,1739385046414,-150.0,0.00020126,120]
[352879396,1739385046424,-150.0,0.00020139,120]
[352879397,1739385046435,-39530.53862816,0.00020139,2]
[352879398,1739385046445,-2804.22845889,0.00020146,2]
[352879399,1739385046455,-962.74,0.00020151,7]
[352879400,1739385046466,-962.74,0.00020151,7]
[352879401,1739385046476,-1500.0,0.00020154,2]
[352879402,1739385046486,-150.0,0.00020158,120]
[352879403,1739385046496,-12500.0,0.0002016,2]
[352879404,1739385046508,-681.46,0.00020161,3]
[352879405,1739385046518,-500.0,0.00020161,3]
[352879406,1739385046528,-500.0,0.00020168,3]
[352879407,1739385046538,-368.99488486,0.00020169,5]
[352879408,1739385046549,-1574.67,0.00020169,3]
[352879409,1739385046560,-500.0,0.00020169,3]
[352879410,1739385046570,-150.0,0.00020187,2]
[352879411,1739385046580,-600.0,0.00020189,2]
[352879412,1739385046590,-500.0,0.00020192,2]
[352879414,1739385046599,-12500.0,0.000202,2]
[352879416,1739385046609,-1500.0,0.00020205,2]
[352879418,1739385046621,-10000.0,0.00020213,2]
[352879420,1739385046631,-10000.0,0.00020213,2]
[352879421,1739385046641,-163.55050001,0.00020218,2]
[352879422,1739385046651,-12500.0,0.0002024,2]
[352879423,1739385046661,-1500.0,0.00020257,2]
[352879424,1739385046671,-177.89328381,0.00020271,2]
[352879426,1739385046680,-150.0,0.00020278,120]
[352879427,1739385046691,-206.0,0.0002028,2]
[352879428,1739385046701,-12500.0,0.0002028,2]
[352879429,1739385046711,-260.67262,0.00020288,7]
[352879430,1739385046722,-500.0,0.00020292,2]
[352879431,1739385046732,-681.46,0.00020298,3]
[352879432,1739385046742,-500.0,0.00020298,3]
[352879433,1739385046752,-11000.0,0.000203,4]
[352879434,1739385046762,-150.0,0.00020304,120]
[352879435,1739385046771,-537.27043987,0.00020305,3]
[352879436,1739385046782,-1574.67,0.00020306,3]
[352879437,1739385046792,-500.0,0.00020306,3]
[352879438,1739385046803,-1500.0,0.00020308,2]
[352879439,1739385046816,-10000.0,0.0002032,2]
[352879440,1739385046827,-10000.0,0.0002032,2]
[352879441,1739385046837,-12500.0,0.0002032,2]
[352879442,1739385046847,-150.0,0.00020333,120]
[352879443,1739385046857,-150.0,0.00020339,120]
[352879444,1739385046869,-1991.5761,0.0002035,2]
[352879445,1739385046879,-150.0,0.00020352,120]
[352879446,1739385046889,-1500.0,0.0002036,2]
[352879447,1739385046899,-12500.0,0.0002036,2]
[352879448,1739385046908,-500.0,0.00020392,2]
[352879449,1739385046919,-2000.0,0.000204,2]
[352879450,1739385046930,-2000.0,0.000204,2]
[352879451,1739385046942,-2000.0,0.000204,2]
[352879452,1739385046952,-2000.0,0.000204,2]
[352879453,1739385046961,-2000.0,0.000204,2]
[352879454,1739385046971,-2000.0,0.000204,2]
[352879455,1739385046981,-2000.0,0.000204,2]
[352879456,1739385046991,-2000.0,0.000204,2]
[352879457,1739385047001,-2000.0,0.000204,2]
[352879458,1739385047012,-2000.0,0.000204,2]
[352879459,1739385047022,-12500.0,0.000204,2]
[352879460,1739385047032,-150.0,0.00020407,120]
[352879461,1739385047042,-150.0,0.00020409,120]
[352879462,1739385047051,-1500.0,0.00020411,2]
[352879463,1739385047066,-962.74,0.00020425,7]
[352879464,1739385047076,-962.74,0.00020425,7]
[352879465,1739385047086,-10000.0,0.00020427,2]
[352879466,1739385047097,-681.46,0.00020435,3]
[352879467,1739385047109,-263.91075178,0.00020435,3]
[352879468,1739385047119,-7849.81,0.0002044,2]
[352879469,1739385047129,-1574.67,0.00020443,3]
[352879470,1739385047140,-500.0,0.00020443,3]
[352879471,1739385047150,-150.0,0.00020446,120]
[352879472,1739385047160,-1500.0,0.00020462,2]
[352879473,1739385047170,-700.0,0.00020463,2]
[352879474,1739385047180,-177.89328381,0.00020482,2]
[352879475,1739385047190,-163.55050001,0.00020482,2]
[352879476,1739385047200,-260.67262,0.00020488,7]
[352879477,1739385047210,-238.11927881,0.00020488,2]
[352879478,1739385047220,-164.51673155,0.0002049,2]
[352879479,1739385047231,-179.23525824,0.00020491,2]
[352879480,1739385047242,-2804.22845889,0.00020491,2]
[352879481,1739385047254,-500.0,0.00020492,2]
[352879482,1739385047264,-2110.0,0.000205,2]
[352879483,1739385047274,-1500.0,0.00020514,2]
[352879484,1739385047284,-150.0,0.00020531,120]
[352879485,1739385047294,-10000.0,0.00020533,2]
[352879486,1739385047305,-1507.999999,0.0002054,120]
[352879487,1739385047314,-177.86,0.00020548,2]
[352879488,1739385047325,-20479.1,0.00020548,2]
[352879489,1739385047335,-205.265608,0.00020548,2]
[352879490,1739385047346,-1500.0,0.00020565,2]
[352879491,1739385047355,-2000.0,0.00020568,2]
[352879492,1739385047366,-1672.20473518,0.00020569,120]
[352879493,1739385047376,-681.46,0.00020572,3]
[352879494,1739385047386,-397.55976301,0.00020577,120]